{"text_format":"1","workbook":"xlsx","n_sheets":1,"sheets":["Zamowienie"],"not_rendered":{"charts":0,"images":0,"macros":1,"external_links":0,"defined_names":1,"comments":0,"pivot_tables":0},"unopened":[],"bounds":{"document_bytes":16777216,"sheet_cells":100000,"rows_first":2000,"rows_last":500,"rows_between":2000,"halvings":0,"cell_chars":16384,"cell_head_chars":4096},"cells_cut":0,"cells_raw":0,"read":"whole","date_system":"1900"}

{"sheet":"Zamowienie","index":0,"n_rows":132,"n_cols":4,"rows_kept":132,"cut":false,"hidden":false,"merged":[[0,1,0,4],[1,1,1,4],[2,1,2,4],[3,1,3,4]]}
["Imie i nazwisko:"]
["Telefon:"]
["E-mail:"]
["Dodatkowe informacje:"]
[]
["Suma",{"$f":"D26+D40+D91+D107+D42+D49+D58+D67+D70+D73+D123","v":0}]
[]
["NA GORĄCO","Cena jednostkowa-sztuki","Ilość szt.","Suma"]
["Barszcz czerwony 8 zł / 250ml",8,0,{"$f":"B9*C9","v":0}]
["Zupa grzybowa 19 zł / 250ml",19,0,{"$f":"B10*C10","v":0}]
["Pierogi z kapustą i grzybami (10szt.) 40 zł",40,0,0]
["Pierogi z halibutem (10szt.) 55 zł",55,0,0]
["Pierogi z gęsiną i żurawiną (10szt.) 45 zł ",45,0,0]
["Pierogi z dziczyzną (10szt.) 45 zł",45,0,0]
["Pierogi z serem na słodko (10szt.) 40 zł",40,0,0]
["Kapusta wigilijna z grzybami 15zł / 200g",15,0,0]
["Polędwica z dorsza w sosie śmietanowo – winnym 39zł / 200g",39,0,0]
["Filet z okonia w sosie mirabelkowym 39zł / 200g",39,0,0]
["Rolada drobiowa z musem grzybowym w sosie tymiankowym 27zł / 200g",27,0,0]
["Noga z kaczki w sosie z owoców leśnych 38zł / 200g",38,0,0]
["Karkówka wieprzowa w sosie śmietan-grzybowym 26zł/200g",26,0,0]
["Karkówka z dzika w sosie z pieczonych śliwek 36zł / 200g",36,0,0]
["Risotto z warzywami i ziołami 22zł / 200g",22,0,0]
["Pasztecik drożdżowy z pieczarkami (10szt.) 40zł",40,0,0]
["Burak w glazurze pomarańczowo-miodowej 11zł/ 200g",11,0,0]
["SUMA",null,null,{"$f":"SUM(D9:D25)","v":0}]
[]
["NA ZIMNO - zamówienia: (0,5kg / 1kg / 1,5kg / 2kg)","Cena jednostkowa sztuki","Ilość szt.(0,5/1/1,5/2)","Suma"]
["Śledzik w ziołach 69zł / kg",69,0,{"$f":"B29*C29","v":0}]
["Ryba w sosie warzywnym po grecku 79zł / kg",79,0,{"$f":"B30*C30","v":0}]
["Warstwowa sałatka ‘Szuba’ 71zł / kg",71,0,0]
["Tradycyjna sałatka jarzynowa 65zł / kg",65,0,0]
["Tymbaliki rybne z halibutem(6szt.) 54zł ",54,0,0]
["Rolada ze szczupaka z sosem tatarskim 140zł / kg",140,0,0]
["Jesiotr wędzony (ok. 1,5kg) 170zł / szt.",170,0,0]
["Kaczka faszerowana (ok. 2kg) 160zł / szt.",160,0,0]
["Perliczka faszerowana (ok. 1,4kg) 170zł / szt.",170,0,0]
["Suraski ser podpuszczkowy (ok. 230g) 23zł / szt.",23,0,0]
["Ser kozi z EKO gospodarstwa (ok. 230g) 32zł / szt.",32,0,0]
["SUMA",null,null,{"$f":"SUM(D29:D39)","v":0}]
[]
["BOX ŚWIĄTECZNY I – 95,00zł / szt.",95,0,{"$f":"B42*C42","v":0}]
["Sos winegret z pestkami - 250ml"]
["Miód nektarowy-wielokwiatowy– 220ml"]
["Smalec wiejski MH 250g"]
["Przyprawy w słoiczku MH – 2szt."]
["Ciastka wypiekane na miejscu 60 g"]
[]
["BOX ŚWIĄTECZNY II – 145,00zł / szt.",145,0,{"$f":"B49*C49","v":0}]
["Konfitura wiśniowa z rumem 250ml"]
["Sos winegret z pestkami - 250ml"]
["Miód nektarowy-wielokwiatowy– 220ml"]
["Smalec wiejski MH 250g"]
["Przyprawy w słoiczku MH – 3szt."]
["Ciastka wypiekane na miejscu 60 g"]
["Herbata brandowana"]
[]
["BOX ŚWIĄTECZNY III – 245,00zł / szt.",245,0,{"$f":"B58*C58","v":0}]
["Konfitura wiśniowa z rumem 250ml"]
["Sos winegret z pestkami - 250ml"]
["Miód nektarowy-wielokwiatowy– 220ml"]
["Smalec wiejski MH 250g"]
["Przyprawy w słoiczku MH – 3szt."]
["Migdały belgijskie"]
["Słodka przepalanka 40%vol (500ml)"]
[]
["BOX ciast 1,5 kg  79 zł (zamiast 91 zł)",79,0,{"$f":"B67*C67","v":0}]
["sernik + piernik + strucla z makiem"]
[]
["BOX napojów domowej roboty 4 sztuki 99 zł (zamiast 108 zł)",99,0,{"$f":"B70*C70","v":0}]
["podpiwek + kwas + 2 x kompot z suszu"]
[]
["BOX wędlin 2 kg 99 zł (zamiast 114 zł)",99,0,{"$f":"B73*C73","v":0}]
["boczek + szynka + polędwica + kiełbasa"]
[]
[]
["WĘDLINY / PASZTETY / ROLADY (zamówienia: 0,5kg / 1kg / 1,5kg / 2kg )","Cena jednostkowa-sztuki","Ilość szt.( 0,5/1/ 1,5/2)","Suma"]
["Boczek wędzony 51zł / kg",51,0,{"$f":"B78*C78","v":0}]
["Szynka tradycyjnie wędzona 58zł / kg",58,0,{"$f":"B79*C79","v":0}]
["Polędwica tradycyjna 66zł / kg",66,0,0]
["Kiełbasa palcówka swojska 54zł / kg",54,0,0]
["Schab z dzika 108zł / kg",108,0,0]
["Karkówka z dzika 98zł / kg",98,0,0]
["Schab wieprzowy dojrzewający w ziołach 64 zł/ kg",64,0,0]
["Szynka z jelenia 95 zł/ kg",95,0,0]
["Kabanosy z dzika 105zł / kg",105,0,0]
["Kiełbasa z sarny 110zł / kg",110,0,0]
["Pasztet z dziczyzny ze śliwką 78zł / kg",78,0,0]
["Pasztet z jelenia z żurawiną 84zł / kg",84,0,0]
["Pasztet drobiowy z piersi z morelą i pistacją 72zł / kg",72,0,0]
[null,null,null,{"$f":"SUM(D78:D90)","v":0}]
[]
["NA SŁODKO - zamówienia:( 0,5kg / 1kg / 1,5kg / 2kg)","Cena jednostkowa sztuki","Ilośc szt.(0,5/1/1,5/2)","Suma"]
["Kutia z bakaliami 59zł / kg",59,0,{"$f":"B94*C94","v":0}]
["Łazanki z makiem 59zł / kg",59,0,{"$f":"B95*C95","v":0}]
["Sernik rosa 59zł / kg",59,0,0]
["Piernik z konfiturą śliwkową 52zł / kg",52,0,0]
["Strucla z makiem (ok. 1kg) 70zł / szt.",70,0,0]
["Blok czekoladowy 80zł / kg",80,0,0]
["Tort biała czekolada/porzeczka (ok. 1,5kg) 220zł / szt.",220,0,0]
["Pierniczki howieńskie 15zł / 10szt.",15,0,0]
["Chleb howieński (ok. 1kg) 27zł / szt.",27,0,0]
["Chleb howieński ze śliwką (ok. 1kg) 27zł / szt.",27,0,0]
["Podpiwek howieński 27zł / 1litr",27,0,0]
["Kompot z suszu",27,0,0]
["Kwas chlebowy 27zł / 1litr",27,0,0]
[null,null,null,{"$f":"SUM(D94:D106)","v":0}]
[]
["W SŁOIKU","Cena jednostkowa sztuki","Ilość szt.","Suma"]
["Mus dyniowy do mięs 22 zł/ 250g",22,0,{"$f":"B110*C110","v":0}]
["Sos winegret z pestkami 24 zł/ 250g HIT!!",24,0,{"$f":"B111*C111","v":0}]
["Dynia marynowana 21 zł/ 250g",21,0,0]
["Smalec wiejski 22 zł/ 250g",22,0,0]
["Prażone jabłka ze śliwką 22 zł/ 250ml",22,0,0]
["Galaretka z winogron na chałkę 22 zł/ 250ml",22,0,0]
["Konfitura wiśniowa z rumem 23 zł/ 250ml",23,0,0]
["Konfitura pomarańczowa do herbaty 23 zł/ 250ml",23,0,0]
["Domowy makaron suszony 19 zł/ słoik",19,0,0]
["Słodka przepalanka howieńska 40% vol 130 zł/ 0,5l HIT!!",130,0,0]
["Specjał Podlaski Samogon 50% vol 150 zł/ 0,5l",150,0,0]
["Naturalna nalewka pigwowa 30% vol 130 zł/ 0,5l",130,0,0]
["Białowieski Bimber Śliwkowy 63% vol 160 zł/ 0,5l",160,0,0]
["SUMA",null,null,{"$f":"SUM(D110:D122)","v":0}]
[]
[]
[]
[]
[]
[]
["Dowóz - 50 zł"]
["Dowóz powyżej 1200 zł - 0 zł"]
["Odbiór osobisty - 0 zł"]